fUSD/lending_fUSD_20250820
["ID","MTS","AMOUNT","RATE_DAILY","PERIOD"]
[380317953,1755665442636,-352.64172,0.00011,2]
[380317954,1755665442653,-151.0,0.00011,2]
[380317955,1755665442663,-352.64172,0.00011,2]
[380317956,1755665442673,-352.64172,0.00011,2]
[380317957,1755665442683,-151.0,0.00011,2]
[380317958,1755665442694,-151.0,0.00011,2]
[380317959,1755665442705,-352.64172,0.00011,2]
[380317960,1755665442715,-151.0,0.00011,2]
[380317961,1755665442725,-224.387115,0.00011,2]
[380317962,1755665442736,-151.0,0.00011,2]
[380317963,1755665442746,-151.0,0.00011,2]
[380317964,1755665442756,-151.0,0.00011,2]
[380317965,1755665442766,-151.0,0.00011,2]
[380317966,1755665442776,-225.209832,0.00011,2]
[380317967,1755665442786,-225.209832,0.00011,2]
[380317968,1755665442796,-151.0,0.00011,2]
[380317969,1755665442807,-151.0,0.00011,2]
[380317970,1755665442817,-225.209832,0.00011,2]
[380317971,1755665442827,-151.0,0.00011,2]
[380317972,1755665442837,-225.209832,0.00011,2]
[380317973,1755665442847,-170.704744,0.00011,2]
[380317974,1755665442857,-170.704744,0.00011,2]
[380317975,1755665442867,-151.0,0.00011,2]
[380317976,1755665442877,-170.704744,0.00011,2]
[380317977,1755665442887,-170.704744,0.00011,2]
[380317978,1755665442897,-482.916446,0.00011,2]
[380317979,1755665442907,-482.916446,0.00011,2]
[380317980,1755665442917,-482.916446,0.00011,2]
[380317981,1755665442928,-482.916446,0.00011,2]
[380317982,1755665442938,-151.0,0.00011,2]
[380317983,1755665442948,-151.0,0.00011,2]
[380317984,1755665442958,-151.0,0.00011,2]
[380317985,1755665442968,-151.0,0.00011,2]
[380317986,1755665442978,-151.0,0.00011,2]
[380317987,1755665442988,-275.751883,0.00011,2]
[380317988,1755665442998,-151.0,0.00011,2]
[380317989,1755665443008,-2162.404561,0.00011,2]
[380317990,1755665443018,-2162.404561,0.00011,2]
[380317991,1755665443028,-574.335686,0.00011,2]
[380317992,1755665443038,-2162.404561,0.00011,2]
[380317993,1755665443049,-574.335686,0.00011,2]
[380317994,1755665443060,-151.0,0.00011,2]
[380317995,1755665443069,-2162.404561,0.00011,2]
[380317996,1755665443080,-66.48753876,0.00011,2]
[380318005,1755665444763,-84.51246124,0.00011,2]
[380318006,1755665444772,-574.335686,0.00011,2]
[380318007,1755665444782,-151.0,0.00011,2]
[380318008,1755665444792,-403.779552,0.00011,2]
[380318009,1755665444801,-151.0,0.00011,2]
[380318010,1755665444810,-295.11571,0.00011,2]
[380318011,1755665444819,-477.02863752,0.00011,2]
[380318012,1755665445967,-97.30704848,0.00011,2]
[380318013,1755665445976,-403.779552,0.00011,2]
[380318014,1755665445986,-151.0,0.00011,2]
[380318015,1755665445995,-403.779552,0.00011,2]
[380318016,1755665446004,-403.779552,0.00011,2]
[380318017,1755665446013,-151.0,0.00011,2]
[380318018,1755665446022,-151.0,0.00011,2]
[380318019,1755665446031,-122.55184012,0.00011,2]
[380318020,1755665446042,-410.12577588,0.00011,2]
[380318021,1755665446051,-532.677616,0.00011,2]
[380318022,1755665446060,-151.0,0.00011,2]
[380318023,1755665446069,-500.0,0.00011,2]
[380318024,1755665446078,-303.536632,0.00011,2]
[380318025,1755665446088,-696.34,0.00011,2]
[380318026,1755665446097,-408.27,0.00011,2]
[380318027,1755665446107,-167.64,0.00011,2]
[380318028,1755665446116,-1078.36,0.00011,2]
[380318029,1755665446125,-176.03,0.00011,2]
[380318030,1755665446135,-309.72249531,0.00011,2]
[380318031,1755665446151,-498.14750469,0.00011,2]
[380318032,1755665446160,-303.536632,0.00011,2]
[380318033,1755665446170,-303.536632,0.00011,2]
[380318034,1755665446179,-849.952143,0.00011,2]
[380318035,1755665446188,-151.0,0.00011,2]
[380318036,1755665446198,-303.536632,0.00011,2]
[380318037,1755665446207,-541.977962,0.00011,2]
[380318038,1755665446217,-849.952143,0.00011,2]
[380318039,1755665446226,-151.0,0.00011,2]
[380318040,1755665446236,-151.0,0.00011,2]
[380318041,1755665446245,-541.977962,0.00011,2]
[380318042,1755665446254,-849.952143,0.00011,2]
[380318043,1755665446264,-151.0,0.00011,2]
[380318044,1755665446273,-265.826887,0.00011,2]
[380318045,1755665446283,-541.977962,0.00011,2]
[380318046,1755665446293,-849.952143,0.00011,2]
[380318047,1755665446303,-151.0,0.00011,2]
[380318048,1755665446312,-151.0,0.00011,2]
[380318049,1755665446321,-541.977962,0.00011,2]
[380318051,1755665446331,-151.0,0.00011,2]
[380318052,1755665446340,-151.0,0.00011,2]
[380318053,1755665446349,-468.403126,0.00011,2]
[380318054,1755665446359,-151.0,0.00011,2]
[380318055,1755665446367,-151.0,0.00011,2]
[380318056,1755665446377,-468.403126,0.00011,2]
[380318057,1755665446386,-906.085885,0.00011,2]
[380318058,1755665446397,-151.0,0.00011,2]
[380318059,1755665446407,-468.403126,0.00011,2]
[380318060,1755665446417,-906.085885,0.00011,2]
[380318061,1755665446426,-468.403126,0.00011,2]
[380318062,1755665446435,-906.085885,0.00011,2]
[380318063,1755665446444,-151.0,0.00011,2]
[380318064,1755665446453,-906.085885,0.00011,2]
[380318065,1755665446462,-151.0,0.00011,2]
[380318066,1755665446471,-151.0,0.00011,2]
[380318067,1755665446481,-581.998467,0.00011,2]
[380318068,1755665446490,-581.998467,0.00011,2]
[380318069,1755665446501,-151.0,0.00011,2]
[380318070,1755665446514,-581.998467,0.00011,2]
[380318071,1755665446524,-151.0,0.00011,2]
[380318072,1755665446533,-151.0,0.00011,2]
[380318073,1755665446543,-468.523521,0.00011,2]
[380318074,1755665446553,-581.998467,0.00011,2]
[380318075,1755665446562,-151.0,0.00011,2]
[380318076,1755665446572,-468.523521,0.00011,2]
[380318077,1755665446582,-468.523521,0.00011,2]
[380318078,1755665446592,-468.523521,0.00011,2]
[380318079,1755665446601,-151.0,0.00011,2]
[380318080,1755665446610,-151.0,0.00011,2]
[380318081,1755665446619,-151.0,0.00011,2]
[380318082,1755665446628,-151.0,0.00011,2]
[380318083,1755665446638,-182.55388,0.00011,2]
[380318084,1755665446651,-151.0,0.00011,2]
[380318085,1755665446661,-500.0,0.00011,2]
[380318086,1755665446670,-151.0,0.00011,2]
[380318087,1755665446679,-280.733598,0.00011,2]
[380318088,1755665446689,-151.0,0.00011,2]
[380318089,1755665446698,-500.0,0.00011,2]
[380318090,1755665446707,-151.0,0.00011,2]
[380318091,1755665446716,-151.0,0.00011,2]
[380318092,1755665446726,-178.696415,0.00011,2]
[380318093,1755665446735,-151.0,0.00011,2]
[380318094,1755665446744,-152.416748,0.00011,2]
[380318095,1755665446753,-151.0,0.00011,2]
[380318096,1755665446762,-151.0,0.00011,2]
[380318097,1755665446772,-151.0,0.00011,2]
[380318098,1755665446781,-1029.883528,0.00011,2]
[380318099,1755665446791,-262.957459,0.00011,2]
[380318100,1755665446800,-151.0,0.00011,2]
[380318102,1755665446809,-1029.883528,0.00011,2]
[380318104,1755665446819,-262.957459,0.00011,2]
[380318106,1755665446828,-151.0,0.00011,2]
[380318108,1755665446837,-1029.883528,0.00011,2]
[380318110,1755665446847,-262.957459,0.00011,2]
[380318111,1755665446856,-1029.883528,0.00011,2]
[380318112,1755665446865,-262.957459,0.00011,2]
[380318113,1755665446874,-500.0,0.00011,2]
[380318114,1755665446884,-151.0,0.00011,2]
[380318115,1755665446895,-151.0,0.00011,2]
[380318116,1755665446904,-151.0,0.00011,2]
[380318117,1755665446914,-151.0,0.00011,2]
[380318118,1755665446923,-151.0,0.00011,2]
[380318119,1755665446933,-151.0,0.00011,2]
[380318120,1755665446942,-151.0,0.00011,2]
[380318121,1755665446951,-226.476712,0.00011,2]
[380318122,1755665446960,-151.0,0.00011,2]
[380318123,1755665446970,-458.382664,0.00011,2]
[380318124,1755665446979,-458.382664,0.00011,2]
[380318125,1755665446988,-458.382664,0.00011,2]
[380318126,1755665446997,-221.52780352,0.00011,2]
[380318127,1755665447009,-458.382664,0.00011,2]
[380318128,1755665447018,-500.0,0.00011,2]
[380318129,1755665447028,-151.0,0.00011,2]
[380318130,1755665447037,-151.0,0.00011,2]
[380318131,1755665447047,-151.0,0.00011,2]
[380318132,1755665447057,-151.0,0.00011,2]
[380318133,1755665447067,-7375.69262165,0.00011,2]
[380318134,1755665447081,-1375.5,0.00011,2]
[380318135,1755665447113,-1531.68752835,0.00011,2]
[380318136,1755665447122,-333.820114,0.00011,2]
[380318137,1755665447132,-10282.88015,0.00011,2]
[380318138,1755665447141,-151.0,0.00011,2]
[380318139,1755665447150,-333.820114,0.00011,2]
[380318140,1755665447160,-1016.580301,0.00011,2]
[380318141,1755665447169,-10282.88015,0.00011,2]
[380318142,1755665447178,-151.0,0.00011,2]
[380318143,1755665447187,-333.820114,0.00011,2]
[380318144,1755665447196,-1016.580301,0.00011,2]
[380318145,1755665447205,-10282.88015,0.00011,2]
[380318146,1755665447215,-151.0,0.00011,2]
[380318147,1755665447224,-333.820114,0.00011,2]
[380318148,1755665447234,-1016.580301,0.00011,2]
[380318149,1755665447243,-151.0,0.00011,2]
[380318150,1755665447253,-1016.580301,0.00011,2]
[380318151,1755665447263,-151.0,0.00011,2]
[380318152,1755665447273,-151.0,0.00011,2]
[380318153,1755665447282,-151.0,0.00011,2]
[380318154,1755665447292,-151.881705,0.00011,2]
[380318155,1755665447302,-151.0,0.00011,2]
[380318156,1755665447314,-151.0,0.00011,2]
[380318157,1755665447325,-161.205943,0.00011,2]
[380318158,1755665447334,-310.470966,0.00011,2]
[380318159,1755665447344,-151.0,0.00011,2]
[380318160,1755665447354,-310.470966,0.00011,2]
[380318161,1755665447363,-151.0,0.00011,2]
[380318162,1755665447373,-151.0,0.00011,2]
[380318163,1755665447382,-310.470966,0.00011,2]
[380318164,1755665447393,-151.0,0.00011,2]
[380318165,1755665447402,-151.0,0.00011,2]
[380318166,1755665447412,-151.0,0.00011,2]
[380318167,1755665447422,-151.0,0.00011,2]
[380318168,1755665447431,-310.470966,0.00011,2]
[380318169,1755665447440,-3789.140331,0.00011,2]
[380318170,1755665447449,-274.080367,0.00011,2]
[380318171,1755665447458,-151.0,0.00011,2]
[380318172,1755665447467,-151.0,0.00011,2]
[380318173,1755665447476,-151.0,0.00011,2]
[380318174,1755665447486,-3789.140331,0.00011,2]
[380318175,1755665447497,-151.0,0.00011,2]
[380318176,1755665447511,-274.080367,0.00011,2]
[380318177,1755665447521,-274.080367,0.00011,2]
[380318178,1755665447531,-3789.140331,0.00011,2]
[380318179,1755665447540,-151.0,0.00011,2]
[380318180,1755665447550,-594.058384,0.00011,2]
[380318181,1755665447559,-3789.140331,0.00011,2]
[380318182,1755665447568,-659.941107,0.00011,2]
[380318183,1755665447579,-274.080367,0.00011,2]
[380318184,1755665447589,-594.058384,0.00011,2]
[380318185,1755665447598,-151.0,0.00011,2]
[380318186,1755665447607,-659.941107,0.00011,2]
[380318187,1755665447617,-594.058384,0.00011,2]
[380318188,1755665447627,-659.941107,0.00011,2]
[380318189,1755665447636,-151.0,0.00011,2]
[380318190,1755665447648,-151.0,0.00011,2]
[380318191,1755665447657,-594.058384,0.00011,2]
[380318192,1755665447667,-659.941107,0.00011,2]
[380318193,1755665447676,-151.0,0.00011,2]
[380318194,1755665447686,-184.590507,0.00011,2]
[380318195,1755665447696,-184.590507,0.00011,2]
[380318196,1755665447706,-151.506954,0.00011,2]
[380318197,1755665447715,-151.0,0.00011,2]
[380318198,1755665447725,-184.590507,0.00011,2]
[380318199,1755665447734,-151.0,0.00011,2]
[380318200,1755665447743,-151.0,0.00011,2]
[380318201,1755665447752,-151.0,0.00011,2]
[380318202,1755665447761,-184.590507,0.00011,2]
[380318203,1755665447770,-151.0,0.00011,2]
[380318204,1755665447779,-159.818398,0.00011,2]
[380318205,1755665447789,-151.0,0.00011,2]
[380318206,1755665447798,-151.0,0.00011,2]
[380318207,1755665447807,-151.0,0.00011,2]
[380318208,1755665447816,-539.25,0.00011,2]
[380318209,1755665447826,-151.0,0.00011,2]
[380318210,1755665447835,-151.0,0.00011,2]
[380318211,1755665447843,-151.0,0.00011,2]
[380318212,1755665447853,-602.597815,0.00011,2]
[380318213,1755665447862,-151.0,0.00011,2]
[380318214,1755665447871,-602.597815,0.00011,2]
[380318215,1755665447880,-602.597815,0.00011,2]
[380318216,1755665447889,-381.451629,0.00011,2]
[380318217,1755665447899,-602.597815,0.00011,2]
[380318218,1755665447908,-151.0,0.00011,2]
[380318219,1755665447918,-393.167068,0.00011,2]
[380318220,1755665447927,-381.451629,0.00011,2]
[380318221,1755665447936,-206.648186,0.00011,2]
[380318222,1755665447945,-151.0,0.00011,2]
[380318223,1755665447954,-393.167068,0.00011,2]
[380318224,1755665447962,-381.451629,0.00011,2]
[380318225,1755665447972,-260.323943,0.00011,2]
[380318226,1755665447981,-151.0,0.00011,2]
[380318227,1755665447990,-206.648186,0.00011,2]
[380318228,1755665447999,-393.167068,0.00011,2]
[380318229,1755665448009,-381.451629,0.00011,2]
[380318230,1755665448018,-206.648186,0.00011,2]
[380318231,1755665448027,-393.167068,0.00011,2]
[380318232,1755665448037,-206.648186,0.00011,2]
[380318233,1755665448047,-977.89101,0.00011,2]
[380318234,1755665448057,-151.0,0.00011,2]
[380318235,1755665448067,-151.0,0.00011,2]
[380318236,1755665448076,-977.89101,0.00011,2]
[380318237,1755665448085,-151.0,0.00011,2]
[380318238,1755665448095,-151.0,0.00011,2]
[380318239,1755665448108,-294.694596,0.00011,2]
[380318240,1755665448121,-977.89101,0.00011,2]
[380318241,1755665448132,-151.0,0.00011,2]
[380318242,1755665448142,-151.0,0.00011,2]
[380318243,1755665448152,-977.89101,0.00011,2]
[380318244,1755665448161,-294.694596,0.00011,2]
[380318245,1755665448170,-294.694596,0.00011,2]
[380318246,1755665448179,-151.0,0.00011,2]
[380318247,1755665448188,-151.0,0.00011,2]
[380318248,1755665448198,-294.694596,0.00011,2]
[380318249,1755665448207,-151.0,0.00011,2]
[380318250,1755665448218,-151.0,0.00011,2]
[380318251,1755665448227,-151.0,0.00011,2]
[380318252,1755665448237,-151.0,0.00011,2]
[380318253,1755665448247,-151.0,0.00011,2]
[380318254,1755665448256,-151.0,0.00011,2]
[380318255,1755665448266,-151.0,0.00011,2]
[380318256,1755665448275,-271.66191222,0.00011,2]
[380318257,1755665448285,-236.280775,0.00011,2]
[380318258,1755665448295,-151.0,0.00011,2]
[380318259,1755665448305,-151.0,0.00011,2]
[380318260,1755665448314,-151.0,0.00011,2]
[380318261,1755665448324,-5281.919761,0.00011,2]
[380318262,1755665448342,-151.0,0.00011,2]
[380318263,1755665448361,-151.0,0.00011,2]
[380318264,1755665448378,-5281.919761,0.00011,2]
[380318265,1755665448388,-151.0,0.00011,2]
[380318266,1755665448399,-222.69706,0.00011,2]
[380318267,1755665448408,-555.83172,0.00011,2]
[380318268,1755665448418,-5281.919761,0.00011,2]
[380318269,1755665448428,-798.85,0.00011,2]
[380318270,1755665448437,-1612.883263,0.00011,2]
[380318271,1755665448446,-555.83172,0.00011,2]
[380318272,1755665448455,-5281.919761,0.00011,2]
[380318273,1755665448465,-1612.883263,0.00011,2]
[380318274,1755665448474,-555.83172,0.00011,2]
[380318275,1755665448483,-1612.883263,0.00011,2]
[380318276,1755665448492,-555.83172,0.00011,2]
[380318277,1755665448501,-554.755618,0.00011,2]
[380318278,1755665448515,-1612.883263,0.00011,2]
[380318279,1755665448524,-554.755618,0.00011,2]
[380318280,1755665448534,-554.755618,0.00011,2]
[380318281,1755665448543,-273.486858,0.00011,2]
[380318282,1755665448554,-554.755618,0.00011,2]
[380318283,1755665448563,-273.486858,0.00011,2]
[380318284,1755665448572,-273.486858,0.00011,2]
[380318285,1755665448582,-1429.670385,0.00011,2]
[380318286,1755665448592,-384.772023,0.00011,2]
[380318287,1755665448602,-329.471214,0.00011,2]
[380318288,1755665448611,-273.486858,0.00011,2]
[380318289,1755665448620,-1429.670385,0.00011,2]
[380318290,1755665448629,-384.772023,0.00011,2]
[380318291,1755665448638,-329.471214,0.00011,2]
[380318292,1755665448648,-1429.670385,0.00011,2]
[380318293,1755665448657,-384.772023,0.00011,2]
[380318294,1755665448666,-329.471214,0.00011,2]
[380318295,1755665448675,-266.592,0.00011,2]
[380318296,1755665448683,-151.0,0.00011,2]
[380318297,1755665448693,-384.772023,0.00011,2]
[380318298,1755665448703,-1429.670385,0.00011,2]
[380318299,1755665448712,-329.471214,0.00011,2]
[380318300,1755665448721,-156.247712,0.00011,2]
[380318301,1755665448730,-151.0,0.00011,2]
[380318302,1755665448739,-151.0,0.00011,2]
[380318303,1755665448748,-151.0,0.00011,2]
[380318304,1755665448758,-151.0,0.00011,2]
[380318305,1755665448767,-749.178889,0.00011,2]
[380318306,1755665448776,-151.0,0.00011,2]
[380318307,1755665448785,-151.0,0.00011,2]
[380318308,1755665448794,-151.0,0.00011,2]
[380318309,1755665448803,-79694.93955956,0.00011014,2]
[380318310,1755665448812,-150.0,0.00011087,2]
[380318311,1755665448821,-790.2962643,0.00011087,2]
[380318312,1755665448831,-1007.24033686,0.00011087,2]
[380318313,1755665448840,-1224.18440941,0.00011087,2]
[380318314,1755665448850,-1441.12848196,0.00011087,2]
[380318315,1755665448859,-1658.07255452,0.00011088,2]
[380318316,1755665448868,-1875.01662707,0.00011088,2]
[380318317,1755665448877,-2091.96069963,0.00011088,2]
[380318318,1755665448886,-2308.90477218,0.00011088,2]
[380318319,1755665448896,-2525.84884473,0.00011088,2]
[380318320,1755665448905,-4388.7676073,0.00011091,2]
[380318321,1755665448914,-4787.7464807,0.00011095,2]
[380318322,1755665448923,-268194.41436991,0.00011098,2]
[380318323,1755665450604,-749.178889,0.00011,2]
[380318324,1755665450614,-272.897566,0.00011,2]
[380318325,1755665450623,-749.178889,0.00011,2]
[380318326,1755665450632,-151.0,0.00011,2]
[380318327,1755665450642,-2236.894656,0.00011098,2]
[380318328,1755665452751,-151.0,0.00011,2]
[380318329,1755665452760,-749.178889,0.00011,2]
[380318330,1755665452770,-151.0,0.00011,2]
[380318331,1755665452779,-119.737566,0.00011098,2]
[380318332,1755665452813,-295.25514135,0.00010282,2]
[380318333,1755665452827,-696.6715207,0.00010282,2]
[380318334,1755665452836,-875.65430885,0.00011098,2]
[380318335,1755665452849,-494.61771879,0.00011098,2]
[380318336,1755665452861,-383.87296915,0.00011098,2]
[380318337,1755665452932,-10102.86571953,0.00011098,2]
[380318338,1755665457392,7559.8,0.00010317,2]
[380318339,1755665457586,170.92394059,0.00010275,2]
[380318340,1755665457622,449.9275454,0.00010275,2]
[380318344,1755665980589,1025.0,0.00013,10]
[380318345,1755666235974,-235.78,9.753e-05,2]
[380318346,1755666235997,-28.44,9.753e-05,2]
[380318347,1755666348293,170.0,9.836e-05,7]
[380318350,1755666500690,200.0,0.000221,120]
[380318353,1755666631606,-669.46,9.558e-05,2]
[380318354,1755666631614,-1778.76092007,9.663e-05,2]
[380318355,1755666631659,-71.47907993,9.663e-05,2]
[380318356,1755666631669,-1799.1867393,9.663e-05,2]
[380318357,1755666631679,-453.81,9.677e-05,2]
[380318358,1755666631690,-151.0,9.677e-05,2]
[380318359,1755666631701,-558.77,9.679e-05,2]
[380318360,1755666631710,-250.0,9.686e-05,2]
[380318361,1755666631721,-1000.0,9.693e-05,2]
[380318362,1755666631732,-250.0,9.696e-05,2]
[380318363,1755666631742,-300.0,9.752e-05,2]
[380318364,1755666631752,-150.0,9.752e-05,2]
[380318365,1755666631761,-300.0,9.752e-05,2]
[380318369,1755666632114,-156.0,9.752e-05,2]
[380318370,1755666632142,-116.08965444,9.752e-05,2]
[380318371,1755666632182,-1083.91034556,9.752e-05,2]
[380318372,1755666632192,-2000.0,9.753e-05,2]
[380318373,1755666632202,-2000.0,9.753e-05,2]
[380318374,1755666632211,-512.1,9.753e-05,2]
[380318375,1755666632221,-1000.0,9.753e-05,2]
[380318376,1755666632230,-879.97004497,9.753e-05,2]
[380318377,1755666632328,-120.02995503,9.753e-05,2]
[380318378,1755666632337,-1000.0,9.753e-05,2]
[380318379,1755666632347,-273.08,9.753e-05,2]
[380318380,1755666632356,-150.99,9.753e-05,2]
[380318381,1755666632366,-160.351,9.753e-05,2]
[380318382,1755666632376,-203.85968817,9.848e-05,2]
[380318383,1755666632385,-6144.62,9.85e-05,2]
[380318384,1755666632395,-166.44,9.85e-05,2]
[380318385,1755666632404,-263.12,9.95e-05,2]
[380318386,1755666632414,-152.45,9.959e-05,2]
[380318387,1755666632423,-1070.91,0.00010062,2]
[380318388,1755666632433,-223.52,0.00010067,2]
[380318389,1755666632443,-1131.28,0.00010156,2]
[380318390,1755666632452,-152.0,0.00010161,2]
[380318391,1755666632462,-16928.3908,0.00010176,2]
[380318392,1755666632471,-1000.0,0.00010176,2]
[380318393,1755666632480,-500.0,0.00010205,2]
[380318394,1755666632490,-500.0,0.00010205,2]
[380318395,1755666632499,-519.02942182,0.00010205,2]
[380318396,1755666632508,-500.0,0.00010205,2]
[380318397,1755666632518,-500.0,0.00010205,2]
[380318398,1755666632527,-500.0,0.00010205,2]
[380318399,1755666632536,-500.0,0.00010205,2]
[380318400,1755666632545,-500.0,0.00010205,2]
[380318401,1755666632554,-476.36814331,0.00010205,2]
[380318402,1755666632564,-349.0,0.00010205,2]
[380318403,1755666632573,-200.68028169,0.00010205,2]
[380318404,1755666632582,-428.7394987,0.00010205,2]
[380318405,1755666632592,-197.42139932,0.00010205,2]
[380318406,1755666632601,-319.95571549,0.00010205,2]
[380318407,1755666632610,-316.19,0.00010206,2]
[380318408,1755666632619,-374.37,0.00010218,2]
[380318409,1755666632628,-459.03751788,0.00010282,2]
[380318410,1755666632637,-4872.80143146,0.00010356,2]
[380318411,1755666632646,-539.18,0.00010378,2]
[380318412,1755666632655,-169.55,0.00010389,2]
[380318413,1755666632664,-277.35679052,0.00010464,2]
[380318414,1755666632673,-160.0,0.00010464,2]
[380318415,1755666632682,-300.0,0.00010464,2]
[380318416,1755666632691,-154.3195935,0.00010464,2]
[380318417,1755666632701,-173.58,0.00010478,2]
[380318418,1755666632711,-539.18,0.00010478,2]
[380318419,1755666632721,-510.61,0.00010478,2]
[380318420,1755666632730,-250.0,0.00010513,2]
[380318421,1755666632739,-300.0,0.00010629,2]
[380318422,1755666632748,-153.0,0.00010644,2]
[380318423,1755666632757,-250.0,0.00010647,2]
[380318424,1755666632767,-1077.82,0.000107,2]
[380318425,1755666632776,-209.68,0.00010723,2]
[380318426,1755666632786,-328.0,0.00010727,2]
[380318427,1755666632795,-255.0,0.00010727,2]
[380318428,1755666632804,-218.0,0.00010727,2]
[380318429,1755666632813,-1680.0,0.00010727,2]
[380318430,1755666632822,-539.18,0.00010778,2]
[380318431,1755666632832,-150.0,0.000108,2]
[380318432,1755666632842,-440.19655906,0.00010852,2]
[380318433,1755666632853,-1000.0,0.00010905,2]
[380318434,1755666632863,-360.60215139,0.00010998,2]
[380318435,1755666632872,-565.77873131,0.00010998,2]
[380318436,1755666632882,-1648.4551,0.00010998,2]
[380318437,1755666632891,-400.78047823,0.00010998,2]
[380318439,1755666637656,-200.71,0.00011,2]
[380318440,1755666637665,-202.51,0.00011,2]
[380318441,1755666637675,-500.0,0.00011,2]
[380318442,1755666637685,-213.58629413,0.00011,2]
[380318591,1755666641012,-286.41370587,0.00011,2]
[380318593,1755666641021,-500.0,0.00011,2]
[380318594,1755666641030,-500.0,0.00011,2]
[380318596,1755666641040,-378.3881333,0.00011076,2]
[380318598,1755666641049,-3554.5154565,0.00011076,2]
[380318600,1755666641058,-7109.0309133,0.00011076,2]
[380318602,1755666641067,-3334.64047778,0.00011076,2]
[380318650,1755666642481,-732.4156999,0.00011076,2]
[380318651,1755666642492,-360.1097826,0.00011076,2]
[380318652,1755666642648,-7882.67706893,0.00011076,2]
[380318653,1755666642660,-116.59780389,0.00011076,2]
[380318654,1755666642669,-178.0561923,0.00011076,2]
[380318655,1755666642678,-150.0,0.00011087,2]
[380318656,1755666642688,-791.92364668,0.00011087,2]
[380318657,1755666642699,-1009.31445165,0.00011087,2]
[380318658,1755666642708,-133.2412418,0.00011087,2]
[380318661,1755666645486,-1093.46401482,0.00011087,2]
[380318662,1755666645496,-1444.09606159,0.00011087,2]
[380318663,1755666645507,-1661.48686656,0.00011088,2]
[380318664,1755666645517,-1800.95305703,0.00011088,2]
[380318676,1755666776708,-128.3881333,0.00010391,2]
[380318677,1755666776753,-121.6118667,0.00010391,2]
[380318678,1755666776762,-128.3881333,0.00010428,2]
[380318679,1755666783874,-3554.5154565,0.00010428,2]
[380318680,1755666791278,-286.41370587,0.00010428,2]
[380318681,1755666799262,-500.0,0.00010428,2]
[380318683,1755667118058,160.0,9.5e-05,2]
[380318684,1755667320188,-235.18951669,0.0001,2]
[380318685,1755667323950,170.0,0.00010009,7]
[380318686,1755667334746,-187.64653919,9.998e-05,2]
[380318687,1755667343721,-500.0,9.998e-05,2]
[380318691,1755667588107,-245.14354533,9.957e-05,2]
[380318692,1755667595775,-424.47185936,9.957e-05,2]
[380318693,1755667609825,-539.18,9.94e-05,2]
[380318696,1755667660986,938.0,0.00022,120]